bitfinex/quotes_BTCUSD_20240723
["timestamp","ask_amount","ask_price","bid_price","bid_amount"]
[1721705988650,0.0025,67702.0,67701.0,0.3498612]
[1721705988897,0.0025,67702.0,67701.0,0.9406932]
[1721705989099,0.0025,67702.0,67701.0,1.3124092]
[1721705989495,0.0025,67702.0,67701.0,0.9406932]
[1721705990197,0.0015,67702.0,67701.0,0.9286932]
[1721705990623,0.0025,67702.0,67701.0,0.9426932]
[1721705990815,0.0015,67702.0,67701.0,0.9326932]
[1721705991131,0.0015,67702.0,67701.0,0.9446932]
[1721705991576,0.0015,67702.0,67701.0,0.9326932]
[1721705991814,0.0015,67702.0,67701.0,0.9466932]
[1721705997474,0.0015,67702.0,67701.0,0.9326932]
[1721705997683,0.0015,67702.0,67701.0,0.9466932]
[1721705998676,0.0005,67702.0,67701.0,0.9326932]
[1721705999163,0.0005,67702.0,67701.0,0.9466932]
[1721706002742,0.0005,67702.0,67701.0,1.2421092]
[1721706009445,0.0005,67702.0,67701.0,0.9466932]
[1721706011058,0.0005,67702.0,67701.0,0.3558612]
[1721706011256,0.0005,67702.0,67701.0,0.2923612]
[1721706011456,0.0005,67702.0,67701.0,0.06438205]
[1721706011841,0.04471012,67702.0,67701.0,0.06438205]
[1721706012046,0.0005,67702.0,67701.0,0.06438205]
[1721706012245,0.04470822,67702.0,67701.0,0.06438205]
[1721706012491,0.0005,67702.0,67701.0,0.06438205]
[1721706012691,0.04471357,67702.0,67701.0,0.06438205]
[1721706012844,0.0005,67702.0,67701.0,0.06438205]
[1721706013493,0.06682036,67702.0,67701.0,0.06438205]
[1721706013696,0.0005,67702.0,67701.0,0.06438205]
[1721706013899,0.04471267,67702.0,67701.0,0.06438205]
[1721706014946,0.0005,67702.0,67701.0,0.06438205]
[1721706015568,0.04471685,67702.0,67701.0,0.06438205]
[1721706016717,0.04471685,67702.0,67701.0,0.0821447]
[1721706016923,0.0005,67702.0,67701.0,0.0821447]
[1721706017122,0.04471945,67702.0,67701.0,0.0821447]
[1721706017536,0.0447241,67702.0,67701.0,0.0821447]
[1721706018135,0.04472354,67702.0,67701.0,0.0821447]
[1721706018341,0.0005,67702.0,67701.0,0.06438205]
[1721706020430,0.06683783,67702.0,67701.0,0.21209005]
[1721706020651,0.0005,67702.0,67701.0,0.21209005]
[1721706021617,0.0005,67702.0,67701.0,0.29239005]
[1721706022433,0.06685586,67702.0,67701.0,0.29239005]
[1721706022639,0.0005,67702.0,67701.0,0.29239005]
[1721706023477,0.06685586,67702.0,67701.0,0.29239005]
[1721706024066,0.0005,67702.0,67701.0,0.29239005]
[1721706024262,0.06685586,67702.0,67701.0,0.29239005]
[1721706024911,0.06684788,67702.0,67701.0,0.29239005]
[1721706025285,0.06684665,67702.0,67701.0,0.29239005]
[1721706025489,0.0005,67702.0,67701.0,0.29239005]
[1721706025702,0.06685284,67702.0,67701.0,0.29239005]
[1721706026569,0.0005,67702.0,67701.0,0.29239005]
[1721706028596,0.00134,67702.0,67701.0,0.29239005]
[1721706030769,0.08982294,67702.0,67701.0,0.29239005]
[1721706030976,0.00134,67702.0,67701.0,0.29239005]
[1721706031348,0.00134,67702.0,67701.0,0.29483739]
[1721706031349,0.08984075,67702.0,67701.0,0.29483739]
[1721706031833,0.00134,67702.0,67701.0,0.29483739]
[1721706032044,0.08984075,67702.0,67701.0,0.29483739]
[1721706033187,0.00134,67702.0,67701.0,0.29483739]
[1721706034416,0.11199928,67702.0,67701.0,0.29483739]
[1721706034974,0.00134,67702.0,67701.0,0.29483739]
[1721706037439,0.11201613,67702.0,67701.0,0.29483739]
[1721706037658,0.00134,67702.0,67701.0,0.29483739]
[1721706038120,0.11202297,67702.0,67701.0,0.14712939]
[1721706038554,0.11202297,67702.0,67701.0,0.06682939]
[1721706038759,0.520658,67702.0,67701.0,0.06682939]
[1721706039003,0.81607,67702.0,67701.0,0.06682939]
[1721706039231,0.81607,67702.0,67701.0,0.05509056]
[1721706039232,0.94265351,67702.0,67701.0,0.05509056]
[1721706039665,0.64724151,67702.0,67701.0,0.05509056]
[1721706039877,0.94275351,67702.0,67701.0,0.02709056]
[1721706040351,0.94260918,67702.0,67701.0,0.02709056]
[1721706041194,0.64719718,67702.0,67701.0,0.02709056]
[1721706041399,0.64719718,67702.0,67701.0,0.05509056]
[1721706042303,0.94260918,67702.0,67701.0,0.04109056]
[1721706042477,0.89553448,67702.0,67701.0,0.04109056]
[1721706042631,0.89553448,67702.0,67701.0,0.05509056]
[1721706043247,0.5297833,67702.0,67701.0,0.05509056]
[1721706043443,0.60008583,67702.0,67701.0,0.05509056]
[1721706043643,0.89549783,67702.0,67701.0,0.05509056]
[1721706046106,0.99549783,67702.0,67701.0,0.05509056]
[1721706047551,0.99549783,67702.0,67701.0,0.04109056]
[1721706047945,1.29090983,67702.0,67701.0,0.04109056]
[1721706048146,1.29090983,67702.0,67701.0,0.05109056]
[1721706048348,1.29090983,67702.0,67701.0,0.06509056]
[1721706048807,0.99549783,67702.0,67701.0,0.06509056]
[1721706052016,1.29090983,67702.0,67701.0,0.06509056]
[1721706052598,1.42345881,67702.0,67701.0,0.06509056]
[1721706052817,0.99534422,67702.0,67701.0,0.06509056]
[1721706053203,1.1280468,67702.0,67701.0,0.06509056]
[1721706053599,0.99534422,67702.0,67701.0,0.06509056]
[1721706054206,1.12803405,67702.0,67701.0,0.06509056]
[1721706055099,0.99534422,67702.0,67701.0,0.06509056]
[1721706055514,1.12803405,67702.0,67701.0,0.06509056]
[1721706055708,1.05790329,67702.0,67701.0,0.06509056]
[1721706055914,1.1279731,67702.0,67701.0,0.06509056]
[1721706056775,1.4233851,67702.0,67701.0,0.06509056]
[1721706058110,1.1279731,67702.0,67701.0,0.06509056]
[1721706058971,1.12755089,67702.0,67701.0,0.06509056]
[1721706060417,1.42296289,67702.0,67701.0,0.06509056]
[1721706060625,1.12755089,67702.0,67701.0,0.06509056]
[1721706061191,0.9251953,67702.0,67701.0,0.06509056]
[1721706061400,1.12752894,67702.0,67701.0,0.06509056]
[1721706061815,1.12751944,67702.0,67701.0,0.06509056]
[1721706062015,0.99486736,67702.0,67701.0,0.06509056]
[1721706062230,1.12751723,67702.0,67701.0,0.06509056]
[1721706062438,1.12751798,67702.0,67701.0,0.06509056]
[1721706062654,1.42292998,67702.0,67701.0,0.06509056]
[1721706062862,0.99486736,67702.0,67701.0,0.06509056]
[1721706064214,0.99499849,67702.0,67701.0,0.06509056]
[1721706066341,1.29041049,67702.0,67701.0,0.06509056]
[1721706066700,0.99499849,67702.0,67701.0,0.06509056]
[1721706067081,1.29041049,67702.0,67701.0,0.06509056]
[1721706067520,1.29051032,67702.0,67701.0,0.06509056]
[1721706068119,1.29051032,67702.0,67701.0,0.038924]
[1721706069726,1.40611032,67702.0,67701.0,0.038924]
[1721706070547,1.28988603,67702.0,67701.0,0.024924]
[1721706071200,1.28988603,67702.0,67701.0,0.010924]
[1721706071447,1.42252866,67702.0,67701.0,0.020924]
[1721706071651,1.28988603,67702.0,67701.0,0.023924]
[1721706071826,1.28988603,67702.0,67701.0,0.020924]
[1721706072029,1.42253435,67702.0,67701.0,0.020924]
[1721706072408,1.28988603,67702.0,67701.0,0.020924]
[1721706073010,1.42253739,67702.0,67701.0,0.020924]
[1721706073413,1.2206073,67702.0,67701.0,0.010924]
[1721706073685,1.28978908,67702.0,67701.0,0.012924]
[1721706074073,1.28979187,67702.0,67701.0,0.012924]
[1721706076793,1.29003793,67702.0,67701.0,0.012924]
[1721706076997,1.29003821,67702.0,67701.0,0.012924]
[1721706077181,1.2206073,67702.0,67701.0,0.012924]
[1721706077615,1.29009975,67702.0,67701.0,0.012924]
[1721706080011,1.2206073,67702.0,67701.0,0.012924]
[1721706080217,1.2899253,67702.0,67701.0,0.012924]
[1721706083132,1.28993713,67702.0,67701.0,0.012924]
[1721706083763,1.43928814,67702.0,67701.0,0.012924]
[1721706084674,1.40553713,67702.0,67701.0,0.012924]
[1721706084867,0.73855,67700.0,67699.0,0.009141]
[1721706085064,1.49471106,67700.0,67699.0,0.009141]
[1721706085663,1.79013106,67700.0,67699.0,0.009141]
[1721706086148,1.61847942,67700.0,67699.0,0.009141]
[1721706086372,1.78933535,67700.0,67699.0,0.009141]
[1721706086591,1.166492,67692.0,67687.0,0.11160756]
[1721706086799,1.33534237,67692.0,67687.0,0.11160756]
[1721706087459,1.73315701,67692.0,67687.0,0.009141]
[1721706087877,2.33507466,67692.0,67687.0,0.009141]
[1721706088080,2.33507466,67692.0,67691.0,0.009]
[1721706088297,1.72486144,67688.0,67687.0,0.009141]
[1721706088504,1.72486144,67688.0,67681.0,0.002]
[1721706088505,0.579048,67682.0,67681.0,0.002]
[1721706088744,1.63439537,67682.0,67681.0,0.002]
[1721706089148,1.63487983,67682.0,67681.0,0.002]
[1721706089802,1.63487983,67682.0,67681.0,0.005]
[1721706090289,1.20358083,67682.0,67681.0,0.0831]
[1721706090503,1.33938083,67682.0,67681.0,0.009]
[1721706092205,1.33923041,67682.0,67681.0,0.009]
[1721706093480,1.63472941,67682.0,67681.0,0.009]
[1721706093699,1.47153373,67682.0,67681.0,0.009]
[1721706093916,1.90541005,67682.0,67681.0,0.009]
[1721706094556,1.77310673,67682.0,67681.0,0.009]
[1721706095219,1.33903519,67682.0,67681.0,0.009]
[1721706095645,1.63453419,67682.0,67681.0,0.009]
[1721706096292,1.63453229,67682.0,67681.0,0.009]
[1721706096506,1.63453229,67682.0,67681.0,1e-08]
[1721706096507,1.73453229,67682.0,67681.0,1e-08]
[1721706096737,1.379804,67679.0,67678.0,1e-08]
[1721706096942,1.69858071,67679.0,67678.0,1e-08]
[1721706097566,1.83072372,67679.0,67678.0,1e-08]
[1721706098051,1.83546913,67679.0,67678.0,1e-08]
[1721706098264,1.76173643,67679.0,67678.0,1e-08]
[1721706098473,1.70756856,67679.0,67678.0,1e-08]
[1721706098898,1.49912631,67679.0,67678.0,1e-08]
[1721706099119,1.24439443,67679.0,67678.0,1e-08]
[1721706099554,1.24439443,67679.0,67678.0,0.02816657]
[1721706099555,0.91883706,67679.0,67678.0,0.02816657]
[1721706099771,0.014,67679.0,67678.0,0.26084733]
[1721706099984,0.014,67679.0,67678.0,0.25984733]
[1721706099985,0.01,67679.0,67678.0,0.25984733]
[1721706100194,0.017,67679.0,67678.0,0.19644013]
[1721706100616,0.04403967,67685.0,67683.0,0.1461]
[1721706100824,0.04403967,67688.0,67683.0,0.1461]
[1721706101034,0.33950967,67689.0,67685.0,0.02616656]
[1721706101244,0.04403967,67689.0,67688.0,0.09276656]
[1721706101455,0.156743,67691.0,67690.0,0.02616656]
[1721706101679,0.452203,67691.0,67690.0,0.02616656]
[1721706101882,0.49624267,67691.0,67690.0,0.03800005]
[1721706102084,0.452203,67691.0,67690.0,0.02616656]
[1721706102701,0.59624267,67691.0,67690.0,0.02616656]
[1721706103149,0.89270267,67691.0,67690.0,0.008]
[1721706103351,1.144123,67691.0,67690.0,0.008]
[1721706103560,1.23220139,67691.0,67690.0,0.008]
[1721706103764,1.25522543,67691.0,67690.0,0.018]
[1721706103971,1.25526318,67691.0,67690.0,0.018]
[1721706104402,1.25525822,67691.0,67690.0,0.018]
[1721706104779,1.145123,67691.0,67690.0,0.018]
[1721706105569,1.40222741,67691.0,67690.0,0.018]
[1721706105771,1.4022321,67691.0,67690.0,0.018]
[1721706105980,1.25526945,67691.0,67690.0,0.018]
[1721706107068,1.21354543,67691.0,67690.0,0.018]
[1721706107270,1.145123,67691.0,67690.0,0.018]
[1721706108156,1.21343946,67691.0,67690.0,0.018]
[1721706108980,1.50889946,67691.0,67690.0,0.018]
[1721706109194,1.78804389,67691.0,67690.0,0.018]
[1721706109422,1.64108124,67691.0,67690.0,0.018]
[1721706109628,1.64108364,67691.0,67690.0,0.018]
[1721706109834,1.50889946,67691.0,67690.0,0.018]
[1721706110045,1.50789946,67691.0,67690.0,0.008]
[1721706110271,1.50789946,67691.0,67690.0,0.009]
[1721706110272,1.55701414,67691.0,67690.0,0.009]
[1721706110490,1.48869768,67691.0,67690.0,0.009]
[1721706110697,1.48869768,67691.0,67678.0,0.06350001]
[1721706110698,1.034292,67679.0,67678.0,0.06350001]
[1721706110912,1.134292,67679.0,67678.0,0.06350001]
[1721706111118,1.22241032,67679.0,67678.0,0.06350001]
[1721706111740,1.134292,67679.0,67678.0,0.06350001]
[1721706111967,1.134292,67679.0,67678.0,1e-08]
[1721706112175,1.31317504,67679.0,67678.0,1e-08]
[1721706112382,1.2030289,67679.0,67678.0,1e-08]
[1721706112997,1.2040289,67679.0,67678.0,0.00700001]
[1721706113426,1.134292,67679.0,67678.0,1e-08]
[1721706113640,1.20234742,67679.0,67678.0,1e-08]
[1721706113849,1.20334742,67679.0,67678.0,0.00200001]
[1721706114056,1.20339204,67679.0,67678.0,0.00200001]
[1721706114270,1.20339204,67679.0,67678.0,0.00700001]
[1721706114515,1.20339204,67679.0,67678.0,0.00200001]
[1721706114729,1.49890404,67679.0,67678.0,0.00200001]
[1721706115180,1.49790404,67679.0,67678.0,1e-08]
[1721706116025,1.49990404,67679.0,67678.0,1e-08]
[1721706116245,1.51535375,67679.0,67678.0,1e-08]
[1721706116457,1.44525371,67679.0,67678.0,1e-08]
[1721706116661,1.51341052,67679.0,67678.0,1e-08]
[1721706116861,1.51441052,67679.0,67678.0,1e-08]
[1721706117071,1.66437317,67679.0,67678.0,1e-08]
[1721706117457,1.66137317,67679.0,67678.0,1e-08]
[1721706117813,1.66337317,67679.0,67678.0,1e-08]
[1721706118015,1.51641052,67679.0,67678.0,1e-08]
[1721706118241,1.51541052,67679.0,67678.0,0.13940001]
[1721706118842,1.51341052,67679.0,67678.0,0.13940001]
[1721706119226,1.51641052,67679.0,67678.0,0.13940001]
[1721706119450,1.51441052,67679.0,67678.0,0.13940001]
[1721706119655,1.51418951,67679.0,67678.0,0.13940001]
[1721706119856,1.51618951,67679.0,67678.0,0.13940001]
[1721706120252,1.52586933,67679.0,67678.0,0.13940001]
[1721706121820,1.45793353,67679.0,67678.0,0.13940001]
[1721706122019,1.52615326,67679.0,67678.0,0.13940001]
[1721706122227,1.45793353,67679.0,67678.0,0.13940001]
[1721706122427,1.52615318,67679.0,67678.0,0.13940001]
[1721706122653,1.52315318,67679.0,67678.0,0.13940001]
[1721706122884,1.52215318,67679.0,67678.0,0.13940001]
[1721706123108,1.52315318,67679.0,67678.0,0.13940001]
[1721706125057,1.52357565,67679.0,67678.0,0.13940001]
[1721706125530,1.65582634,67679.0,67678.0,0.07570001]
[1721706125721,1.65582634,67679.0,67678.0,1e-08]
[1721706126554,1.75196048,67679.0,67678.0,1e-08]
[1721706126796,1.70196048,67679.0,67678.0,1e-08]
[1721706127441,1.64586048,67679.0,67678.0,1e-08]
[1721706127653,1.58636048,67679.0,67678.0,1e-08]
[1721706127855,1.52357565,67679.0,67678.0,0.14050001]
[1721706128075,1.52385185,67679.0,67678.0,0.14050001]
[1721706128492,1.52285185,67679.0,67678.0,0.07640001]
[1721706128909,1.52385185,67679.0,67678.0,0.07640001]
[1721706129320,1.52485185,67679.0,67678.0,0.07640001]
[1721706130361,1.52485185,67679.0,67678.0,1e-08]
[1721706130975,1.58870999,67679.0,67678.0,1e-08]
[1721706131183,1.58914689,67679.0,67678.0,1e-08]
[1721706131406,1.52528875,67679.0,67678.0,1e-08]
[1721706131841,1.52328875,67679.0,67678.0,1e-08]
[1721706132285,1.52428875,67679.0,67678.0,1e-08]
[1721706132498,1.52328875,67679.0,67678.0,1e-08]
[1721706132703,1.6732756,67679.0,67678.0,1e-08]
[1721706132906,1.52428875,67679.0,67678.0,1e-08]
[1721706133115,1.52328875,67679.0,67678.0,1e-08]
[1721706133362,1.52928875,67679.0,67678.0,0.00100001]
[1721706133513,1.6782756,67679.0,67678.0,0.00100001]
[1721706133726,1.52328875,67679.0,67678.0,1e-08]
[1721706134138,1.45393353,67679.0,67678.0,1e-08]
[1721706134307,1.66995384,67679.0,67678.0,1e-08]
[1721706134509,1.67495384,67679.0,67678.0,1e-08]
[1721706134708,1.67495898,67679.0,67678.0,1e-08]
[1721706134921,1.66995898,67679.0,67678.0,1e-08]
[1721706135290,1.82087282,67679.0,67678.0,1e-08]
[1721706135493,1.82187282,67679.0,67678.0,1e-08]
[1721706135924,1.81887282,67679.0,67678.0,1e-08]
[1721706136132,1.82187282,67679.0,67678.0,1e-08]
[1721706136345,1.82287282,67679.0,67678.0,1e-08]
[1721706136546,1.67591017,67679.0,67678.0,1e-08]
[1721706136752,1.52799633,67679.0,67678.0,1e-08]
[1721706137167,1.45493353,67679.0,67678.0,1e-08]
[1721706137367,1.45793353,67679.0,67678.0,1e-08]
[1721706137573,1.329862,67676.0,67675.0,0.009141]
[1721706137784,1.68940306,67676.0,67675.0,0.009141]
[1721706138832,1.68940306,67676.0,67675.0,0.011141]
[1721706139626,1.68940306,67676.0,67675.0,0.012141]
[1721706140495,1.68971027,67676.0,67675.0,0.011141]
[1721706140630,1.68971027,67676.0,67675.0,0.009141]
[1721706140631,1.69471027,67676.0,67675.0,0.009141]
[1721706140814,2.04167292,67676.0,67675.0,0.009141]
[1721706141012,2.14786205,67676.0,67675.0,0.009141]
[1721706141840,2.14386205,67676.0,67675.0,0.009141]
[1721706142042,2.13886205,67676.0,67675.0,0.010141]
[1721706142254,2.06573284,67676.0,67675.0,0.010141]
[1721706142463,2.08873284,67676.0,67675.0,0.010141]
[1721706142665,2.08873284,67676.0,67675.0,0.009141]
[1721706143584,1.92539544,67676.0,67675.0,0.010141]
[1721706143758,2.24275837,67676.0,67675.0,0.010141]
[1721706144743,2.24675837,67676.0,67675.0,0.010141]
[1721706145074,2.24275837,67676.0,67675.0,0.010141]
[1721706145481,2.24975837,67676.0,67675.0,0.011141]
[1721706145885,2.25775837,67676.0,67675.0,0.012141]
[1721706146088,2.04479572,67676.0,67675.0,0.010141]
[1721706146265,1.93039572,67676.0,67675.0,0.010141]
[1721706146508,1.88356228,67676.0,67675.0,0.010141]
[1721706146717,1.68356228,67676.0,67675.0,0.070941]
[1721706146918,1.58183723,67676.0,67675.0,0.070941]
[1721706147330,1.58183748,67676.0,67675.0,0.070941]
[1721706148634,1.73068003,67676.0,67675.0,0.070941]
[1721706148763,1.73068003,67676.0,67675.0,0.010141]
[1721706149395,1.58183748,67676.0,67675.0,0.010141]
[1721706149815,1.5817678,67676.0,67675.0,0.010141]
[1721706150264,1.58176779,67676.0,67675.0,0.010141]
[1721706152989,1.50559659,67676.0,67675.0,0.010141]
[1721706153221,1.58189659,67676.0,67675.0,0.010141]
[1721706153443,1.68372616,67676.0,67675.0,0.010141]
[1721706156048,1.513162,67676.0,67675.0,0.010141]
[1721706156262,1.68491552,67676.0,67675.0,0.010141]
[1721706157281,1.90571161,67676.0,67675.0,0.010141]
[1721706157491,1.85571161,67676.0,67675.0,0.010141]
[1721706158110,1.70874896,67676.0,67675.0,0.010141]
[1721706158309,1.70874896,67676.0,67675.0,0.085341]
[1721706158310,1.88491552,67676.0,67675.0,0.085341]
[1721706158585,1.68491552,67676.0,67675.0,0.085341]
[1721706158790,1.88491552,67676.0,67675.0,0.085341]
[1721706158999,1.68491552,67676.0,67675.0,0.085341]
[1721706159223,1.8850419,67676.0,67675.0,0.085341]
[1721706159649,1.78256405,67676.0,67675.0,0.085341]
[1721706159861,1.88508705,67676.0,67675.0,0.085341]
[1721706160720,1.78258226,67676.0,67675.0,0.085341]
[1721706160958,1.88492528,67676.0,67675.0,0.085341]
[1721706161150,1.68492528,67676.0,67675.0,0.085341]
[1721706161295,1.88492528,67676.0,67675.0,0.085341]
[1721706161918,1.9081144,67676.0,67675.0,0.085341]
[1721706162321,1.90764945,67676.0,67675.0,0.085341]
[1721706162705,1.73635112,67676.0,67675.0,0.085341]
[1721706162996,1.90765044,67676.0,67675.0,0.085341]
[1721706164467,1.70765044,67676.0,67675.0,0.085341]
[1721706164692,1.90765044,67676.0,67675.0,0.085341]
[1721706168711,1.90715331,67676.0,67675.0,0.085341]
[1721706169080,1.70715331,67676.0,67675.0,0.148941]
[1721706169318,1.23337606,67676.0,67675.0,0.148941]
[1721706169532,1.30967606,67676.0,67675.0,0.148941]
[1721706169731,1.28648694,67676.0,67675.0,0.148941]
[1721706170683,1.27948694,67676.0,67675.0,0.147941]
[1721706171330,1.27948694,67676.0,67675.0,0.148941]
[1721706171728,0.61213694,67676.0,67675.0,0.17510756]
[1721706171947,0.68843694,67676.0,67675.0,0.17510756]
[1721706172158,0.98402503,67676.0,67675.0,0.1870229]
[1721706172584,0.98402503,67676.0,67675.0,0.17510756]
[1721706173005,0.31667503,67676.0,67675.0,0.17610756]
[1721706173214,0.31667503,67676.0,67675.0,0.1880229]
[1721706173430,0.61220003,67676.0,67675.0,0.1870229]
[1721706173706,0.543287,67676.0,67675.0,0.17610756]
[1721706173943,0.543287,67676.0,67675.0,0.17510756]
[1721706174157,0.543287,67676.0,67675.0,0.1870229]
[1721706174361,0.543287,67676.0,67675.0,0.1860229]
[1721706174588,0.543287,67676.0,67675.0,0.1900229]
[1721706174589,0.544287,67676.0,67675.0,0.1900229]
[1721706175253,0.543287,67676.0,67675.0,0.1860229]
[1721706175462,0.543287,67676.0,67675.0,0.1880229]
[1721706175918,0.543287,67676.0,67675.0,0.1860229]
[1721706176241,0.543287,67676.0,67675.0,0.1930229]
[1721706176242,0.544287,67676.0,67675.0,0.1930229]
[1721706176678,0.545287,67676.0,67675.0,0.1970229]
[1721706177921,0.545287,67676.0,67675.0,0.18510756]
[1721706178047,0.545287,67676.0,67675.0,0.1970229]
[1721706179753,0.249762,67676.0,67675.0,0.1970229]
[1721706179974,0.102,67676.0,67675.0,0.1970229]
[1721706180183,0.002,67676.0,67675.0,0.1970229]
[1721706181003,0.002,67676.0,67675.0,0.23353039]
[1721706181306,0.11242124,67676.0,67675.0,0.38129539]
[1721706181466,0.102,67676.0,67675.0,0.3447879]
[1721706182286,0.102,67676.0,67675.0,0.1970229]
[1721706182705,0.002,67676.0,67675.0,0.3447879]
[1721706182920,0.06822123,67676.0,67675.0,0.95757839]
[1721706183143,0.04614712,67676.0,67675.0,0.95757839]
[1721706183355,0.002,67676.0,67675.0,0.95757839]
[1721706184501,0.001,67676.0,67675.0,0.95357839]
[1721706184933,0.002,67676.0,67675.0,0.95757839]
[1721706185346,0.002,67676.0,67675.0,0.95057839]
[1721706185347,0.001,67676.0,67675.0,0.95057839]
[1721706185761,0.001,67676.0,67675.0,0.96157839]
[1721706186210,0.001,67676.0,67675.0,0.6443179]
[1721706186448,0.001,67676.0,67675.0,0.4965529]
[1721706186849,0.148762,67676.0,67675.0,0.4965529]
[1721706187056,0.001,67676.0,67675.0,0.4965529]
[1721706190136,0.148762,67676.0,67675.0,0.4965529]
[1721706190610,0.148762,67676.0,67675.0,0.48463756]
[1721706190831,0.148762,67676.0,67675.0,0.49652489]
[1721706195637,0.444287,67676.0,67675.0,0.49652489]
[1721706196055,1.18512642,67676.0,67675.0,0.47035833]
[1721706196255,1.18512642,67676.0,67675.0,0.33155833]
[1721706196256,1.49698465,67676.0,67675.0,0.33155833]
[1721706196463,1.35405015,67676.0,67675.0,0.33155833]
[1721706197175,1.36949986,67676.0,67675.0,0.319671]
[1721706197895,1.36977634,67676.0,67675.0,0.319671]
[1721706198132,1.30057613,67676.0,67675.0,0.319671]
[1721706198341,1.36977606,67676.0,67675.0,0.319671]
[1721706198774,1.30057613,67676.0,67675.0,0.319671]
[1721706199003,1.36983837,67676.0,67675.0,0.33156251]
[1721706199214,1.36983778,67676.0,67675.0,0.33156251]
[1721706200030,1.36883778,67676.0,67675.0,0.31656251]
[1721706200239,1.50113634,67676.0,67675.0,0.31756251]
[1721706200452,1.36883778,67676.0,67675.0,0.32056251]
[1721706200659,1.36883778,67676.0,67675.0,0.31956251]
[1721706200886,1.37083778,67676.0,67675.0,0.31656251]
[1721706201198,1.37183778,67676.0,67675.0,0.31656251]
[1721706201409,1.50413634,67676.0,67675.0,0.31656251]
[1721706201620,1.37183778,67676.0,67675.0,0.31656251]
[1721706202019,1.50429342,67676.0,67675.0,0.31656251]
[1721706202595,1.22217615,67676.0,67675.0,0.31656251]
[1721706202831,1.29647615,67676.0,67675.0,0.45916251]
[1721706203210,1.29847615,67676.0,67675.0,0.45916251]
[1721706203612,1.30047615,67676.0,67675.0,0.45916251]
[1721706204144,1.29547615,67676.0,67675.0,0.45916251]
[1721706204569,1.29547615,67676.0,67675.0,0.46116251]
[1721706205559,1.29577708,67676.0,67675.0,0.46116251]
[1721706209324,1.00025208,67676.0,67675.0,0.46116251]
[1721706211258,1.00032685,67676.0,67675.0,0.46116251]
[1721706212334,1.13275902,67676.0,67675.0,0.46116251]
[1721706213497,1.13275902,67676.0,67675.0,0.48732907]
[1721706214031,1.00032685,67676.0,67675.0,0.48732907]
[1721706214473,1.00063362,67676.0,67675.0,0.48732907]
[1721706214684,1.13312048,67676.0,67675.0,0.48732907]
[1721706215477,1.00063362,67676.0,67675.0,0.48732907]
[1721706215694,1.13313628,67676.0,67675.0,0.48732907]
[1721706216121,1.00063362,67676.0,67675.0,0.48732907]
[1721706217561,1.00051154,67676.0,67675.0,0.48732907]
[1721706220185,0.62868654,67676.0,67675.0,0.48732907]
[1721706220393,0.70498654,67676.0,67675.0,0.48732907]
[1721706220815,0.70546513,67676.0,67675.0,0.48732907]
[1721706222022,0.83797753,67676.0,67675.0,0.48732907]
[1721706222791,0.70546513,67676.0,67675.0,0.48732907]
[1721706222992,1.13350004,67676.0,67675.0,0.48732907]
[1721706223778,1.00104387,67676.0,67675.0,0.48732907]
[1721706224186,1.00104387,67676.0,67675.0,0.46116251]
[1721706224389,1.00104387,67676.0,67675.0,0.31856251]
[1721706224513,1.29656887,67676.0,67675.0,0.31856251]
[1721706227026,1.29687365,67676.0,67675.0,0.31856251]
[1721706227811,1.22057365,67676.0,67675.0,0.31856251]
[1721706227989,1.29687365,67676.0,67675.0,0.31856251]
[1721706230130,1.29720077,67676.0,67675.0,0.31856251]
[1721706233247,1.22608671,67676.0,67675.0,0.31856251]
[1721706233454,1.29718739,67676.0,67675.0,0.31856251]
[1721706234335,1.44631526,67676.0,67675.0,0.31856251]
[1721706236432,1.44631444,67676.0,67675.0,0.31856251]
[1721706238253,1.29715715,67676.0,67675.0,0.31856251]
[1721706239519,1.29715387,67676.0,67675.0,0.31856251]
[1721706239919,1.22608671,67676.0,67675.0,0.31856251]
[1721706240261,1.29715413,67676.0,67675.0,0.31856251]
[1721706241830,1.00162913,67676.0,67675.0,0.31856251]
[1721706242040,0.92532913,67676.0,67675.0,0.45676251]
[1721706242245,1.29715413,67676.0,67675.0,0.45676251]
[1721706243702,0.92532913,67676.0,67675.0,0.48292907]
[1721706243912,0.90987942,67676.0,67675.0,0.48292907]
[1721706244679,0.838812,67676.0,67675.0,0.48292907]
[1721706244876,0.91051911,67676.0,67675.0,0.48292907]
[1721706247918,0.91050728,67676.0,67675.0,0.48292907]
[1721706250982,0.838812,67676.0,67675.0,0.48292907]
[1721706251183,0.91056118,67676.0,67675.0,0.48292907]
[1721706251382,1.20608618,67676.0,67675.0,0.48292907]
[1721706251581,0.91041189,67676.0,67675.0,0.48292907]
[1721706253261,1.20593689,67676.0,67675.0,0.48292907]
[1721706254230,1.20576652,67676.0,67675.0,0.39356251]
[1721706255494,1.35501057,67676.0,67675.0,0.39356251]
[1721706255693,1.35501114,67676.0,67675.0,0.39356251]
[1721706257191,1.134337,67676.0,67675.0,0.39356251]
[1721706257538,1.35514057,67676.0,67675.0,0.39356251]
[1721706258342,1.35515225,67676.0,67675.0,0.39356251]
[1721706259322,0.91038464,67676.0,67675.0,0.48052907]
[1721706259495,0.9258489,67676.0,67675.0,0.48052907]
[1721706260446,0.92581369,67676.0,67675.0,0.48052907]
[1721706260818,0.91034943,67676.0,67675.0,0.48052907]
[1721706261020,1.05959853,67676.0,67675.0,0.48052907]
[1721706261623,0.91034943,67676.0,67675.0,0.48052907]
[1721706261820,1.35512353,67676.0,67675.0,0.31856251]
[1721706262024,1.20587443,67676.0,67675.0,0.31856251]
[1721706262834,1.40587443,67676.0,67675.0,0.31856251]
[1721706263033,1.40587443,67676.0,67675.0,0.19851979]
[1721706263034,1.65729836,67676.0,67675.0,0.19851979]
[1721706263376,1.80586071,67676.0,67675.0,0.13340828]
[1721706263684,1.80580723,67676.0,67675.0,0.13340828]
[1721706264128,1.70104034,67676.0,67675.0,0.13140828]
[1721706264553,1.80520508,67676.0,67675.0,0.13140828]
[1721706264757,1.70404034,67676.0,67675.0,0.13240828]
[1721706264936,1.70704034,67676.0,67675.0,0.13240828]
[1721706265378,1.71004034,67676.0,67675.0,0.13340828]
[1721706265793,1.81411806,67676.0,67675.0,0.13340828]
[1721706266618,1.632862,67676.0,67675.0,0.13240828]
[1721706266831,1.81302719,67676.0,67675.0,0.13240828]
[1721706267021,1.95998984,67676.0,67675.0,0.13240828]
[1721706267227,1.41342432,67676.0,67675.0,0.13240828]
[1721706268153,1.70894932,67676.0,67675.0,0.13240828]
[1721706268756,1.41342432,67676.0,67675.0,0.13240828]
[1721706269526,1.41342432,67676.0,67675.0,0.27400828]